Workbook

Sheet In class
C1: ALGO TRADING FIRM
A3: Generating HYPOTHESIS (FINANCE) | C3: BACK-TEST (STATS and CODING) | F3: EXECUTION (CODING and FINANCE)
C7: Two Main stakeholder
B9: Individuals/Corporates: | D9: Institutions:
B10: Traders/Investors | D10: Brokers, clearing houses,Exchanges
B12: Objective: To increase the PnL | D12: Objective: Increase profits + manage risks
C16: Hedge Fund Singapore
B18: $200 million/week
C20: BUY | E20: SELL
B21: Monday
B22: Buy Securities worth | C22: $100 million | E22: $100 million
B24: The total traded value in a week is $200 million
B26: Broker A | D26: Broker B
B27: saves 1 cent per $100 traded more than Broker B
B29: Broker A is 1bps better than Broker B
B30: =200*1000000*0.0001 -> 20000 | C30: $ per week
B31: =B30*52 -> 1040000 | C31: $ per year
B33: Hedge Fund's Returns:
B34: Their returns would be x% +0.01% with broker A
B35: 1 bps is known as the broker alpha

Sheet Order Routing
B6: Broker and You
B7: Broker (Could be in-house too)
B8: You
E9: EXCHANGE
B16: Market Adapter | H16: Order Router
E17: Strategy
B24: Broker 1 parses the feed/punches the order in 2 microseconds
B26: Broker 2 parses the feed/punches the order in 4 microseconds

Sheet Exchange
D2: EXCHANGE
D10: Orders coming in
D11: Buyers/Sellers
D13: Brokers/Institutions
A15: ORDERS
A16: SBIN, Buy order, Price $100, Qty 8
A17: SBIN, Buy order, Price $99, Qty 4
A18: SBIN, Buy order, Price $98.5, Qty 4
A19: PNB, BUY order, Price $399, Qty 6
A20: SBIN, Sell order, Price $101.5, Qty 5
A21: SBIN, Sell order, Price $102, Qty 1
A22: PNB, Sell order, Price $400, Qty 10
A23: SBIN, Buy order, Price $97.5, Qty 3
A24: SBIN, Sell order, Price $103, Qty 2
A32: ORDER BOOK of SBIN | E32: ORDER BOOK of PNB
B33: Prices | C33: Qty | F33: Prices | G33: Qty
B35: 103 | C35: 2
B36: 102 | C36: 1
B37: 101.5 | C37: 5 | F37: 400 | G37: 10
B38: SELL | F38: SELL
B40: BUY | F40: BUY
B41: Prices | C41: Qty | F41: Prices | G41: Qty
B42: 100 | C42: 8 | F42: 399 | G42: 6
B43: 99 | C43: 4
B44: 98.5 | C44: 4
B45: 97.5 | C45: 3
A48: Market makers: They have strategies to determine the fair price of an asset (most of them would definitely use order book data to calcuate the fair price)
A49: Eg: if a market maker calculates the fair price of asset as $100
A50: So he would send a buy order at say $99.5 and a sell order at $100.5

Sheet Orderbook
A2: 9:45am | B2: Stock | C2: ABC
C3: Order Book | I3: Assumption
A4: Level | B4: Qty | C4: Bid Price | E4: Ask Price | F4: Qty | I4: If the market maker calculates that the fair price is 100.2
A5: 1 | B5: 5 | C5: 100 | E5: 100.5 | F5: 15
A6: 2 | B6: 3 | C6: 99.5 | E6: 101 | F6: 35 | I6: bid offer @ 100
A7: 3 | B7: 10 | C7: 99 | E7: 101.5 | F7: 5 | I7: ask offer @100.4
A8: 4 | B8: 20 | C8: 98.25 | E8: 102.5 | F8: 2
A9: 5 | B9: 5 | C9: 98 | E9: 103 | F9: 15 | I9: If a taking strategy calculates the fair price at 100.2
I10: It wont fire orders
A12: A Buy order comes in @100.1 for 10 shares | I12: If a taking strategy calculates the fair price at 101
A13: 10:00am | E13: Order Book
A14: Level | B14: Qty | C14: Bid | E14: Ask | F14: Qty
A15: 1 | B15: 10 | C15: 100.1 | E15: 100.5 | F15: 15
A16: 2 | B16: 5 | C16: 100 | E16: 101 | F16: 35
A17: 3 | B17: 3 | C17: 99.5 | E17: 101.5 | F17: 5
A18: 4 | B18: 10 | C18: 99 | E18: 102.5 | F18: 2
A19: 5 | B19: 20 | C19: 98.25 | E19: 103 | F19: 15
B20: 5 | C20: 98
A23: A Sell order comes in @100.3 for 5 shares
A24: 10:15am | E24: Order Book
A25: Level | B25: Qty | C25: Bid | E25: Ask | F25: Qty
A26: 1 | B26: 10 | C26: 100.1 | E26: 100.3 | F26: 5
A27: 2 | B27: 5 | C27: 100 | E27: 100.5 | F27: 15
A28: 3 | B28: 3 | C28: 99.5 | E28: 101 | F28: 35
A29: 4 | B29: 10 | C29: 99 | E29: 101.5 | F29: 5
A30: 5 | B30: 20 | C30: 98.25 | E30: 102.5 | F30: 2
B31: 5 | C31: 98 | E31: 103 | F31: 15
A34: What happens if you place a buy order for 3 shares @ 101??
A36: Order book after the trade
A37: 10:30am | E37: Order Book
A38: Level | B38: Qty | C38: Bid | E38: Ask | F38: Qty | H38: You will get a fill of 3 shares at 100.3
A39: 1 | B39: 10 | C39: 100.1 | E39: 100.3 | F39: 2
A40: 2 | B40: 5 | C40: 100 | E40: 100.5 | F40: 15
A41: 3 | B41: 3 | C41: 99.5 | E41: 101 | F41: 35
A42: 4 | B42: 10 | C42: 99 | E42: 101.5 | F42: 5
A43: 5 | B43: 20 | C43: 98.25 | E43: 102.5 | F43: 2
B44: 5 | C44: 98 | E44: 103 | F44: 15
A47: What happens if you place a sell order for 5 shares @ 99??
A50: Order book after the trade
A51: 10:30am | E51: Order Book
A52: Level | B52: Qty | C52: Bid | E52: Ask | F52: Qty | H52: You will get a fill of 5 shares at 100.1
A53: 1 | B53: 5 | C53: 100.1 | E53: 100.3 | F53: 2
A54: 2 | B54: 5 | C54: 100 | E54: 100.5 | F54: 15
A55: 3 | B55: 3 | C55: 99.5 | E55: 101 | F55: 35
A56: 4 | B56: 10 | C56: 99 | E56: 101.5 | F56: 5
A57: 5 | B57: 20 | C57: 98.25 | E57: 102.5 | F57: 2
B58: 5 | C58: 98 | E58: 103 | F58: 15
A61: You send a buy order@99.7 for 2 shares
A63: Order book after the trade
A64: 10:30am | E64: Order Book
A65: Level | B65: Qty | C65: Bid | E65: Ask | F65: Qty
A66: 1 | B66: 5 | C66: 100.1 | E66: 100.3 | F66: 2
A67: 2 | B67: 5 | C67: 100 | E67: 100.5 | F67: 15
A68: 3 | B68: 2 | C68: 99.7 | E68: 101 | F68: 35
A69: 4 | B69: 3 | C69: 99.5 | E69: 101.5 | F69: 5
A70: 5 | B70: 10 | C70: 99 | E70: 102.5 | F70: 2
B71: 20 | C71: 98.25 | E71: 103 | F71: 15
B72: 5 | C72: 98

Sheet Price-Time priority
A2: 9:45am
C3: Order Book
A4: Level | B4: Qty | C4: Bid | D4: Ask | E4: Qty
A5: 1 | B5: 5 | C5: 100 | D5: 100.5 | E5: 15
A6: 2 | B6: 3 | C6: 99.5 | D6: 101 | E6: 35
A7: 3 | B7: 10 | C7: 99 | D7: 101.5 | E7: 5
A8: 4 | B8: 20 | C8: 98.25 | D8: 102.5 | E8: 2
A9: 5 | B9: 5 | C9: 98 | D9: 103 | E9: 15
A12: A Buy order comes in @99.5 for 10 shares
A13: 10:00am | D13: Order Book
A14: Level | B14: Qty | C14: Bid | D14: Ask | E14: Qty
A15: 1 | B15: 5 | C15: 100 | D15: 100.5 | E15: 15
A16: 2 | B16: 13 | C16: 99.5 | D16: 101 | E16: 35
A17: 3 | B17: 10 | C17: 99 | D17: 101.5 | E17: 5
A18: 4 | B18: 20 | C18: 98.25 | D18: 102.5 | E18: 2
A19: 5 | B19: 5 | C19: 98 | D19: 103 | E19: 15
A22: Level | B22: Qty | C22: Bid | D22: Ask | E22: Qty
A23: 1 | B23: 5 | C23: 100 | D23: 100.5 | E23: 15
A24: 2 | B24: 3 | C24: 99.5 | D24: 101 | E24: 35
B25: 10 | C25: 99.5 | F25: Your order will have a lower priority than
A26: 3 | B26: 10 | C26: 99 | D26: 101.5 | E26: 5 | F26: the rest of the 3 shares already at Level 2
A27: 4 | B27: 20 | C27: 98.25 | D27: 102.5 | E27: 2
A28: 5 | B28: 5 | C28: 98 | D28: 103 | E28: 15
A31: If a 3rd party sell order comes in @99 for 8 shares
A33: Level | B33: Qty | C33: Bid | D33: Ask | E33: Qty
A34: 1 | B34: 5 | C34: 100 | D34: 100.5 | E34: 15
A35: 2 | B35: 3 | C35: 99.5 | D35: 101 | E35: 35
B36: 10 | C36: 99.5
A37: 3 | B37: 10 | C37: 99 | D37: 101.5 | E37: 5
A38: 4 | B38: 20 | C38: 98.25 | D38: 102.5 | E38: 2
A39: 5 | B39: 5 | C39: 98 | D39: 103 | E39: 15
A42: the first 5 shares to get traded would be @100
A44: Level | B44: Qty | C44: Bid | D44: Ask | E44: Qty
A45: 1 | B45: 3 | C45: 99.5 | D45: 100.5 | E45: 15
A46: 2 | B46: 10 | C46: 99.5 | D46: 101 | E46: 35
A47: 3 | B47: 10 | C47: 99
A48: 4 | B48: 20 | C48: 98.25 | D48: 101.5 | E48: 5
A49: 5 | B49: 5 | C49: 98 | D49: 102.5 | E49: 2
D50: 103 | E50: 15
A52: The next 3 orders that get traded would be @99.5, but they won't be our shares
A54: Level | B54: Qty | C54: Bid | D54: Ask | E54: Qty | H54: Avg Trade Price | J54: =((H56*I56)+(H57*I57))/(SUM(I56:I57)) -> 99.8125
A55: 1 | B55: 10 | C55: 99.5 | D55: 100.5 | E55: 15 | H55: Price | I55: Qty
A56: 2 | B56: 10 | C56: 99 | D56: 101 | E56: 35 | H56: 100 | I56: 5
A57: 3 | B57: 20 | C57: 98.25 | H57: 99.5 | I57: 3
A58: 4 | B58: 5 | C58: 98 | D58: 101.5 | E58: 5
A59: 5 | D59: 102.5 | E59: 2
D60: 103 | E60: 15

Sheet Orderbook Structure
C3: Order Book
A4: Level | B4: Qty | C4: Bid | D4: Ask | E4: Qty | H4: Question1
A5: 1 | B5: 2 | C5: 100 | D5: 101 | E5: 1 | H5: If I place a BUY order above 10% of the best ASK (or at Rs. 110) for 10 shares, What will be the best Ask price?
A6: =A5+1 -> 2 | B6: 5 | C6: 99.75 | D6: 101.25 | E6: 2 | H6: The first 4 levels will get traded and therefore,
A7: =A6+1 -> 3 | B7: 8 | C7: 99.6 | D7: 101.5 | E7: 5 | H7: The best Ask would be at 102 with 1 Qty left!
A8: 4 | B8: 10 | C8: 99.25 | D8: 102 | E8: 3 | H8: So this order removed $1 (102-101) from the top level!!
A9: 5 | B9: 9 | C9: 98.8 | D9: 102.5 | E9: 3 | H9: Question2
A10: 6 | B10: 11 | C10: 98.5 | D10: 103 | E10: 2 | H10: If I place a SELL order below 10% of the best BID (or at Rs. 90) for 10 shares, What will be the best BUY price?
A11: 7 | B11: 15 | C11: 98.35 | D11: 104 | E11: 6 | H11: The first 3 levels will get traded and therefore,
A12: 8 | B12: 7 | C12: 98 | D12: 104.5 | E12: 7 | H12: The best BID would be at 99.6 with 5 Qty left!
A13: 9 | B13: 9 | C13: 97.8 | D13: 105 | E13: 8 | H13: This order only removed $0.4 (100-99.6) from the top level!!
A14: 10 | B14: 5 | C14: 97.5 | D14: 106 | E14: 9
H17: Structure of Order book on Buy Side and Sell Side
A18: Ask | B18: Price | C18: Cqty
A19: 1 | B19: =D5 -> 101 | C19: =E5 -> 1
A20: =A19+1 -> 2 | B20: =D6 -> 101.25 | C20: =SUM($E$5:E6) -> 3
A21: =A20+1 -> 3 | B21: 101.5 | C21: =SUM($E$5:E7) -> 8
A22: 4 | B22: 102 | C22: =SUM($E$5:E8) -> 11
A23: 5 | B23: 102.5 | C23: =SUM($E$5:E9) -> 14
A24: 6 | B24: 103 | C24: =SUM($E$5:E10) -> 16
A25: 7 | B25: 104 | C25: =SUM($E$5:E11) -> 22
A26: 8 | B26: 104.5 | C26: =SUM($E$5:E12) -> 29
A27: 9 | B27: 105 | C27: =SUM($E$5:E13) -> 37
A28: 10 | B28: 106 | C28: =SUM($E$5:E14) -> 46
A29: Bid
A30: 1 | B30: =C5 -> 100 | C30: =B5 -> 2
A31: =A30+1 -> 2 | B31: =C6 -> 99.75 | C31: =SUM($B$5:B6) -> 7
A32: =A31+1 -> 3 | B32: 99.6 | C32: =SUM($B$5:B7) -> 15
A33: 4 | B33: 99.25 | C33: =SUM($B$5:B8) -> 25
A34: 5 | B34: 98.8 | C34: =SUM($B$5:B9) -> 34
A35: 6 | B35: 98.5 | C35: =SUM($B$5:B10) -> 45
A36: 7 | B36: 98.35 | C36: =SUM($B$5:B11) -> 60
A37: 8 | B37: 98 | C37: =SUM($B$5:B12) -> 67
A38: 9 | B38: 97.8 | C38: =SUM($B$5:B13) -> 76
A39: 10 | B39: 97.5 | C39: =SUM($B$5:B14) -> 81

Sheet Prob of fill
A2: 10:00am | B2: Order Book
A3: Level | B3: Bid | C3: Ask | D3: Fair price (As calculated by the strategy) | E3: Bid-ask spread
A4: 1 | B4: 100 | C4: 100.5 | D4: =AVERAGE(B4:C4) -> 100.25 | E4: =C4-B4 -> 0.5
A5: 2 | B5: 99.5 | C5: 101 | E5: =C5-B5 -> 1.5
A6: 3 | B6: 99 | C6: 101.5 | E6: 2.5
A7: 4 | B7: 98.25 | C7: 102.5 | E7: 4.25
A8: 5 | B8: 98 | C8: 103 | E8: 5
A10: Ques: If I have to buy this stock at the best possible price, what price should I place my order at to maximize the profit?
A11: Assumption: Our Strategy has calculated the fair price as 100.25 and we will calculate the profits of our open positions from the the fair price.
A13: Case 1: Trade at Best Bid
A15: Trade@ | B15: Fair Price
A16: 100 | B16: 100.25 | C16: (As calculated by Strategy)
A17: profit is 25 cents
A18: if the prob of getting a trade @100 is 0.5
A19: Then my expected profit is:
A20: 0.125 | B20: =0.5*25cents
A22: Case 2: Trade at 2nd Best Bid
A24: Trade@ | B24: Fair Price
A25: 99.5 | B25: 100.25 | C25: (As calculated by Strategy)
A26: profit is 75 cents
A27: if the prob of getting a trade @99.5 is 0.25
A28: Then my expected profit is:
A29: 0.1875 | B29: =0.25*75cents
A32: Level | B32: Gains | C32: Prob. of getting a fill | D32: EV
A33: 1 | B33: =$D$4-B4 -> 0.25 | C33: 0.5 | D33: =C33*B33 -> 0.125 | E33: =C14*B14
A34: 2 | B34: =$D$4-B5 -> 0.75 | C34: 0.25 | D34: =C34*B34 -> 0.1875
A35: 3 | B35: =$D$4-B6 -> 1.25 | C35: 0.1 | D35: 0.125
A36: 4 | B36: =$D$4-B7 -> 2 | C36: 0.04 | D36: 0.08
A37: 5 | B37: =$D$4-B8 -> 2.25 | C37: 0.02 | D37: 0.045
A40: From the ticks you can get the orderbook
A41: For each trade--> from the order book you know at what level that trade occured
A43: 10,00,000 qty was traded
A45: 500000 | B45: Level 1 | D45: prob of getting a fill at level 1 = 500000/1000000
A46: 250000 | B46: Level 2 | D46: prob of getting a fill at level 2 = 250000/1000000
A47: 100000 | B47: Level 3
A48: .. | B48: …
A51: Qty | B51: Bid | C51: Ask | D51: Level
A52: 5 | B52: 100 | C52: 100.5 | D52: 1
A53: 10 | B53: 99.5 | C53: 101 | D53: =D52+1 -> 2
A54: 25 | B54: 99 | C54: 101.5 | D54: =D53+1 -> 3
A55: 20 | B55: 98.25 | C55: 102.5 | D55: 4
A56: 40 | B56: 98 | C56: 103 | D56: 5
A59: Sell order comes @ 99 for qty 40 | D59: -----> | F59: Price Traded | G59: Qty Traded | J59: Average Trade Price | L59: =SUM(H60:H62)/SUM(G60:G62) -> 99.25
A60: @ Level 1: 5 shares got traded | F60: 100 | G60: 5 | H60: =G60*F60 -> 500
A61: @ Level 2: 10 shares got traded | F61: 99.5 | G61: 10 | H61: =G61*F61 -> 995
A62: @ Level 3: 25 shares got traded | F62: 99 | G62: 25 | H62: 2475

Sheet Market Order
A2: 10:00am
C3: Order Book
A4: Level | B4: Qty | C4: Bid | D4: Ask | E4: Qty
A5: 1 | B5: 5 | C5: 100 | D5: 100.5 | E5: 15
A6: 2 | B6: 13 | C6: 99.5 | D6: 101 | E6: 35
A7: 3 | B7: 10 | C7: 99 | D7: 101.5 | E7: 5
A8: 4 | B8: 20 | C8: 98.25 | D8: 102.5 | E8: 2
A9: 5 | B9: 5 | C9: 98 | D9: 103 | E9: 15
A12: A market order to sell 4 shares comes in
A13: 10:05am
C14: Order Book
A15: Level | B15: Qty | C15: Bid | D15: Ask | E15: Qty | G15: Fill for 4 shares at 100
A16: 1 | B16: 1 | C16: 100 | D16: 100.5 | E16: 15
A17: 2 | B17: 13 | C17: 99.5 | D17: 101 | E17: 35
A18: 3 | B18: 10 | C18: 99 | D18: 101.5 | E18: 5
A19: 4 | B19: 20 | C19: 98.25 | D19: 102.5 | E19: 2
A20: 5 | B20: 5 | C20: 98 | D20: 103 | E20: 15
A23: A market order to sell 5 shares comes in
A24: 10:10am
C25: Order Book
A26: Level | B26: Qty | C26: Bid | D26: Ask | E26: Qty | G26: Fill for 1 share at 100
A27: 1 | B27: 9 | C27: 99.5 | D27: 100.5 | E27: 15 | G27: Fill for 4 share at 99.5
A28: 2 | B28: 10 | C28: 99 | D28: 101 | E28: 35
A29: 3 | B29: 20 | C29: 98.25 | D29: 101.5 | E29: 5
A30: 4 | B30: 5 | C30: 98 | D30: 102.5 | E30: 2
A31: 5 | D31: 103 | E31: 15
A33: Send a market order for selling 9 shares @10:10.001
A34: 10:10.0001 removed buy order of 5 shares from 99.5 and moved them to 99
C35: Order Book
A36: Level | B36: Qty | C36: Bid | D36: Ask | E36: Qty
A37: 1 | B37: 4 | C37: 99.5 | D37: 100.5 | E37: 15
A38: 2 | B38: 15 | C38: 99 | D38: 101 | E38: 35
A39: 3 | B39: 20 | C39: 98.25 | D39: 101.5 | E39: 5
A40: 4 | B40: 5 | C40: 98 | D40: 102.5 | E40: 2
A41: 5 | D41: 103 | E41: 15
A45: Say the lag in the broker's terminal is 10 milliseconds
A47: Fill for 4 shares at 99.5 and 5 shares at 99
A49: 5 shares that were first to come @99, they will get traded!!!

Sheet Limit Order
A2: 9:45am
C3: Order Book
A4: Level | B4: Qty | C4: Bid | D4: Ask | E4: Qty | H4: A marketable Buy limit order would mean you have fired a limit order with price = 100.5
A5: 1 | B5: 5 | C5: 100 | D5: 100.5 | E5: 15
A6: 2 | B6: 3 | C6: 99.5 | D6: 101 | E6: 35
A7: 3 | B7: 10 | C7: 99 | D7: 101.5 | E7: 5
A8: 4 | B8: 20 | C8: 98.25 | D8: 102.5 | E8: 2
A9: 5 | B9: 5 | C9: 98 | D9: 103 | E9: 15
A10: CASE 1
A11: 9:59am
A12: A Limit Buy order comes in @100.75 for 20 shares
A14: 10:00am | D14: Order Book
A15: Level | B15: Qty | C15: Bid | D15: Ask | E15: Qty
A16: 1 | B16: 5 | C16: 100.75 | D16: 101 | E16: 35 | G16: Fill of 15 shares at 100.5
A17: 2 | B17: 5 | C17: 100 | D17: 101.5 | E17: 5
A18: 3 | B18: 13 | C18: 99.5 | D18: 102.5 | E18: 2
A19: 4 | B19: 10 | C19: 99 | D19: 103 | E19: 15
A20: 5 | B20: 20 | C20: 98.25
B21: 5 | C21: 98
A22: CASE 2
A23: 9:59am
A24: A Market Buy order comes in for 20 shares
C26: Order Book
A27: Level | B27: Qty | C27: Bid | D27: Ask | E27: Qty
A28: 1 | B28: 5 | C28: 100 | D28: 101 | E28: 30 | G28: 15 fill at 100.5
A29: 2 | B29: 3 | C29: 99.5 | D29: 101.5 | E29: 5 | G29: 5 fill at 101
A30: 3 | B30: 10 | C30: 99 | D30: 102.5 | E30: 2
A31: 4 | B31: 20 | C31: 98.25 | D31: 103 | E31: 15
A32: 5 | B32: 5 | C32: 98
A35: 9:45am
C36: Order Book
A37: Level | B37: Qty | C37: Bid | D37: Ask | E37: Qty
A38: 1 | B38: 5 | C38: 100 | D38: 100.5 | E38: 15
A39: 2 | B39: 3 | C39: 99.5 | D39: 101 | E39: 35
A40: 3 | B40: 10 | C40: 99 | D40: 101.5 | E40: 5
A41: 4 | B41: 20 | C41: 98.25 | D41: 102.5 | E41: 2
A42: 5 | B42: 5 | C42: 98 | D42: 103 | E42: 15
A44: 9:59am
A45: Limit sell order for 12 shares @99.2
C46: Order Book
A47: Level | B47: Qty | C47: Bid | D47: Ask | E47: Qty
A48: 1 | B48: 10 | C48: 99 | D48: 99.2 | E48: 4 | G48: Fill at 100 for 5 shares
A49: 2 | B49: 20 | C49: 98.25 | D49: 100.5 | E49: 15 | G49: Fill at 99.5 for 3 shares
A50: 3 | B50: 5 | C50: 98 | D50: 101 | E50: 35
A51: 4 | D51: 101.5 | E51: 5
A52: 5 | D52: 102.5 | E52: 2
D53: 103 | E53: 15

Sheet Stop Loss
A2: 9:45am
C3: Order Book
A4: Level | B4: Qty | C4: Bid | D4: Ask | E4: Qty
A5: 1 | B5: 5 | C5: 100 | D5: 100.5 | E5: 15
A6: 2 | B6: 3 | C6: 99.5 | D6: 101 | E6: 35
A7: 3 | B7: 10 | C7: 99 | D7: 101.5 | E7: 5
A8: 4 | B8: 20 | C8: 98.25 | D8: 102.5 | E8: 2
A9: 5 | B9: 5 | C9: 98 | D9: 103 | E9: 15
A11: Say you have bought the share at $100
A12: And now you want to exectue a take profit and stop loss at $5
A14: Book Profit: You want to sell the stock if the market prices reaches $105
A15: Book Loss: You want to sell the stock if the market price reaches $95
A17: For take profit you can easily put a Sell limit order at $105
A18: 9:46am
C19: Order Book
A20: Level | B20: Qty | C20: Bid | D20: Ask | E20: Qty
A21: 1 | B21: 5 | C21: 100 | D21: 100.5 | E21: 15
A22: 2 | B22: 3 | C22: 99.5 | D22: 101 | E22: 35
A23: 3 | B23: 10 | C23: 99 | D23: 101.5 | E23: 5
A24: 4 | B24: 20 | C24: 98.25 | D24: 102.5 | E24: 2
A25: 5 | B25: 5 | C25: 98 | D25: 103 | E25: 15
D26: 105 | E26: 1
A29: But for loss you can't put a sell order at $95 right now because that will get executed!
A30: So you will place a special instruction with the broker that as soon as the market best ask/bid reaches $95 you fire a sell order at $95
A31: 1:30pm
C32: Order Book | G32: Limit sell stop loss order when the best ask reaches $95
A33: Level | B33: Qty | C33: Bid | D33: Ask | E33: Qty
A34: 1 | B34: 12 | C34: 95.1 | D34: 95.5 | E34: 10
A35: 2 | B35: 4 | C35: 95 | D35: 96 | E35: 15
A36: 3 | B36: 8 | C36: 94.5 | D36: 96.1 | E36: 20
A38: 1:35pm
C39: Order Book | G39: Here your stop loss will get fired
A40: Level | B40: Qty | C40: Bid | D40: Ask | E40: Qty
A41: 1 | B41: 12 | C41: 94.9 | D41: 95 | E41: 10
A42: 2 | B42: 4 | C42: 94.75 | D42: 96 | E42: 15
A43: 3 | B43: 8 | C43: 94.5 | D43: 96.1 | E43: 20
C45: Order Book
A46: Level | B46: Qty | C46: Bid | D46: Ask | E46: Qty
A47: 1 | B47: 12 | C47: 94.9 | D47: 95 | E47: 11
A48: 2 | B48: 4 | C48: 94.75 | D48: 96 | E48: 15
A49: 3 | B49: 8 | C49: 94.5 | D49: 96.1 | E49: 20

Sheet IOC
A1: Order Book | F1: Order Book
B2: SBIN | G2: PNB
A3: Qty | B3: Price | C3: Price | D3: Qty | F3: Qty | G3: Price | H3: Price | I3: Qty
A4: 10 | B4: 100 | C4: 100.1 | D4: 20 | F4: 50 | G4: 100.15 | H4: 100.2 | I4: 20
A5: 10 | B5: 99.95 | C5: 100.15 | D5: 50 | F5: 40 | G5: 100 | H5: 100.5 | I5: 10
A7: Fire IOC orders: | F7: Benefit of IOC
A8: Buy order for SBIN @100.1 | F8: I will either get both legs of my order executed, or none get executed!
A9: Sell order for PNB @100.15 | F9: It won't happen that I am left with either a long SBIN or a short PNB
A11: FOK Orders
A12: 10:00:00am
A13: Order Book
B14: Stock
A15: Qty | B15: Price | C15: Price | D15: Qty
A16: 10 | B16: 100 | C16: 100.1 | D16: 20
A17: 10 | B17: 99.95 | C17: 100.15 | D17: 50
A18: 10:00:01
A19: Fire an FOK buy order for 20 shares @100.1
A20: 10:00:0.5
A21: Order Book
B22: Stock
A23: Qty | B23: Price | C23: Price | D23: Qty
A24: 10 | B24: 100 | C24: 100.1 | D24: 15
A25: 10 | B25: 99.95 | C25: 100.15 | D25: 50
A27: Exchange will cancel your whole order and you will not get a partial fill
A29: IOC Orders
A30: 10:00:00am
A31: Order Book
B32: Stock
A33: Qty | B33: Price | C33: Price | D33: Qty
A34: 10 | B34: 100 | C34: 100.1 | D34: 20
A35: 10 | B35: 99.95 | C35: 100.15 | D35: 50
A36: 10:00:01
A37: Fire an IOC order for 20 shares @100.1
A38: 10:00:0.5
A39: Order Book
B40: Stock
A41: Qty | B41: Price | C41: Price | D41: Qty
A42: 10 | B42: 100 | C42: 100.1 | D42: 15
A43: 10 | B43: 99.95 | C43: 100.15 | D43: 50
A45: Order Book
B46: Stock
A47: Qty | B47: Price | C47: Price | D47: Qty
A48: 10 | B48: 100 | C48: 100.15 | D48: 50 | F48: You will get a partial fill of 15 shares @100.1 and rest of the 5 shares will get cancelled
A49: 10 | B49: 99.95

Sheet Iceberg
C1: Order Book
A2: Level | B2: Qty | C2: Bid | D2: Ask | E2: Qty
A3: 1 | B3: 5 | C3: 100 | D3: 100.5 | E3: 8
A4: 2 | B4: 3 | C4: 99.5 | D4: 101.5 | E4: 5
A5: 3 | B5: 10 | C5: 99 | D5: 102.5 | E5: 2
A6: 4 | B6: 20 | C6: 98.25 | D6: 103 | E6: 15
A7: 5 | B7: 5 | C7: 98
A9: 10:00am : You fire a sell order @100.05 for QTY 100 with some hidden qty (iceberg order)
C11: Order Book
A12: Level | B12: Qty | C12: Bid | D12: Ask | E12: Qty (displayed) | F12: Iceberg
A13: 1 | B13: 5 | C13: 100 | D13: 100.05 | E13: 10 | F13: 90 | H13: Total qty was 100 (There is only one trader with the iceberg)
A14: 2 | B14: 3 | C14: 99.5 | D14: 100.5 | E14: 8
A15: 3 | B15: 10 | C15: 99 | D15: 101.5 | E15: 5
A16: 4 | B16: 20 | C16: 98.25 | D16: 102.5 | E16: 2
A17: 5 | B17: 5 | C17: 98 | D17: 103 | E17: 15
A20: If some trader fires a buy order @100.1 for 15 shares
A21: And he gets a fill of 15 shares at 100.05 | E21: ---> | F21: Iceberg order at 100.05 with a qty greater than 15 shares!!!
A22: (Exchange will broadcast this information)
A24: Step 1
C25: Order Book
A26: Level | B26: Qty | C26: Bid | D26: Ask | E26: Qty | F26: Iceberg
A27: 1 | B27: 5 | C27: 100 | D27: 100.05 | E27: 0 | F27: 85 | H27: I get a fill at 100.05 for all 15 shares
A28: 2 | B28: 3 | C28: 99.5 | D28: 100.5 | E28: 8 | H28: Total qty left is 85
A29: 3 | B29: 10 | C29: 99 | D29: 101.5 | E29: 5
A30: 4 | B30: 20 | C30: 98.25 | D30: 102.5 | E30: 2
A31: 5 | B31: 5 | C31: 98 | D31: 103 | E31: 15
A35: Step 2
C36: Order Book
A37: Level | B37: Qty | C37: Bid | D37: Ask | E37: Qty | F37: Iceberg
A38: 1 | B38: 5 | C38: 100 | D38: 100.05 | E38: 8 | F38: 77
A39: 2 | B39: 3 | C39: 99.5 | D39: 100.5 | E39: 35
A40: 3 | B40: 10 | C40: 99 | D40: 101.5 | E40: 5
A41: 4 | B41: 20 | C41: 98.25 | D41: 102.5 | E41: 2
A42: 5 | B42: 5 | C42: 98 | D42: 103 | E42: 15

Sheet Pegging
B3: Order Book
A4: Level | B4: Bid | C4: Ask
A5: 1 | B5: 100 | C5: 100.5
A6: 2 | B6: 99.5 | C6: 101
A7: 3 | B7: 99 | C7: 101.5
A8: 4 | B8: 98.25 | C8: 102.5
A9: 5 | B9: 98 | C9: 103
A11: At the buy side
A12: Pegging order: is a limit order where the price of the order is dependent on the price of a particluar level of the Order book
A14: An order that is pegged at say Level 1
A15: Whatever the best bid is: I will fire an order 1 tick (5 cents more than the best bid), I will not consider my own bid when evaluating the best bid
A16: My order is pegged at level 1 bid
A18: Example 1
A19: I will therefore fire my order at 100.05!!
A20: If the order at 100 moves to 100.1, then I would modify my order to 100.15!!
A22: Example 2
A23: pegged at 2nd level--> I will fire the order at 99.55
A25: An order that is pegged at say Level 2
A26: Whatever the second best bid is: I will fire an order 1 tick (5 cents more than the second best bid)
A27: My order is pegged at level 2 bid
A29: Example 1
A30: I will therefore fire my order at 99.55!!
A31: If a new order enters at 100.2 , then I would modify my order to 100.05!!
B34: My order was pegged to Level 2 (5 cents above the 2nd Level)
B35: Order Book | G35: Order Book
A36: Level | B36: Bid | C36: Ask | F36: Level | G36: Bid | H36: Ask
A37: 1 | B37: 100 | C37: 100.5 | F37: 1 | G37: 100.2 | H37: 100.5 | J37: Here I will fire an order at 100.05
A38: 2 | B38: 99.55 | C38: 101 | F38: 2 | G38: 100 | H38: 101
A39: 3 | B39: 99.5 | C39: 101.5 | F39: 3 | G39: 99.55 | H39: 101.5
A40: 4 | B40: 99 | C40: 102.5 | F40: 4 | G40: 99.5 | H40: 102.5
A41: 5 | B41: 98.25 | C41: 103 | F41: 5 | G41: 99 | H41: 103
B42: 98 | G42: 98.25
G43: 98

Sheet Discretion
B3: Order Book
A4: Level | B4: Bid | D4: Ask
A5: 1 | B5: 100 | D5: 100.5
A6: 2 | B6: 99.5 | D6: 101
A7: 3 | B7: 99 | D7: 101.5
A8: 4 | B8: 98.25 | D8: 102.5
A9: 5 | B9: 98 | D9: 103
A11: Discretion order
A12: You would give the broker/code a discretion: that it can modify the price of an order by a certain amount if it can get traded!
A14: Example:
A15: You fire a Buy limit order at 100, with a discretion range of 10 cents
A17: 10:00am | D17: Order Book
B18: Level | D18: Bid | E18: Ask | F18: With a discretion range of 10 cents
B19: 1 | D19: 100 | E19: 100.5 | F19: Your code knows that it can modify the price till 100.1, if there is an ask at that price!!
B20: 2 | D20: 99.75 | E20: 100.5
B21: 3 | D21: 99.5 | E21: 101
B22: 4 | D22: 99 | E22: 101.5
B23: 5 | D23: 98.25 | E23: 102.5
D24: 98 | E24: 103
A25: 10:05:00
D26: Order Book
B27: Level | D27: Bid | E27: Ask
B28: 1 | D28: 100 | E28: 100.1
B29: 2 | D29: 99.75 | E29: 100.5
B30: 3 | D30: 99.5 | E30: 101
B31: 4 | D31: 99 | E31: 101.5
B32: 5 | D32: 98.25 | E32: 102.5
D33: 98 | E33: 103
A35: Then your discretion range will be used, and your order will be modfied to 100.1, so that it gets executed!
A38: What is the benefit of this?
A39: Think in term of Expected Value
A41: Case 1: No discretion range is used.
A43: Case 2: Discretion range of 10 cents is used.
A46: Given:
A47: Fair price is 100.25 (As calculated by your strategy)
A49: 0.5 is the prob of getting a trade at best bid
A50: profit= fair price - traded price | D50: (buy )
A53: EV for Case 1:
A54: EV = prob of getting traded * profit of trade | G54: profit | H54: prob | I54: EV
A55: =0.5 * 0.25 | C55: =0.125 | G55: 100.25-100 | H55: 0.5 | I55: 0.125
A57: EV for Case 2: | G57: profit | H57: prob | I57: EV
A58: EV = prob of getting traded * profit of trade | G58: 100.25-100.1 | H58: 1 | I58: 0.15
A59: =1 * 0.15 | C59: =0.15
B63: 10:00am | E63: Order Book
C64: Level | E64: Bid | F64: Ask
C65: 1 | E65: 100.1 | F65: 100.5
C66: =C65+1 -> 2 | E66: 100 | F66: 100.5
C67: =C66+1 -> 3 | E67: 99.75 | F67: 101
C68: 4 | E68: 99.5 | F68: 101.5
C69: 5 | E69: 99 | F69: 102.5
C70: 6 | E70: 98.25 | F70: 103
E71: 98
A72: EV for Case 1: (if I put a limit order at 100.1)
A73: EV = prob of getting traded * profit of trade | G73: profit of trade
A74: =0.8 * 0.15 | C74: =0.12 | G74: 100.25-100.1
A76: EV for Case 2: (if I put a limit order at 100)
A77: EV = prob of getting traded * profit of trade | G77: profit of trade
A78: =0.5 * 0.25 | C78: =0.125 | G78: 100.25-100

Sheet Pro-Rata basis
A1: PRO RATA BASIS Matching in ORDER BOOK
A2: 9:45am
C3: Order Book
A4: Level | B4: Qty | C4: Bid | D4: Ask | E4: Qty
A5: 1 | B5: 2 | C5: 100 | D5: 100.5 | E5: 15
A6: 2 | B6: 6 | C6: 99.5 | D6: 101 | E6: 35
A7: 3 | B7: 12 | C7: 99 | D7: 101.5 | E7: 5
A8: 4 | B8: 20 | C8: 98.25 | D8: 102.5 | E8: 2
A9: 5 | B9: 5 | C9: 98 | D9: 103 | E9: 15
A11: A sell order comes in for 10 shares @99
A12: 10:00am
A13: Qty at level*order qty/total qty at all the levels the order would have interacted
A14: Total shares that could have traded were 20 (Qty at level 1+qty at level 2 + qty at level 3)
C16: Order Book
A17: Level | B17: Qty | C17: Bid | D17: Ask | E17: Qty
A18: 1 | B18: 1 | C18: 100 | D18: 100.5 | E18: 15 | G18: 1 Fill at 100 | I18: 2*10/20
A19: 2 | B19: 3 | C19: 99.5 | D19: 101 | E19: 35 | G19: 3 Fills at 99.5 | I19: 6*10/20
A20: 3 | B20: 6 | C20: 99 | D20: 101.5 | E20: 5 | G20: 6 Fills at 99 | I20: 12*10/20
A21: 4 | B21: 20 | C21: 98.25 | D21: 102.5 | E21: 2
A22: 5 | B22: 5 | C22: 98 | D22: 103 | E22: 15
A25: A sell order comes in for 4 shares @99.5
A26: 10:00am
C28: Order Book
A29: Level | B29: Qty | C29: Bid | D29: Ask | E29: Qty
A30: 1 | B30: 1 | C30: 100 | D30: 100.5 | E30: 15 | G30: 1 fill | I30: 2*4/8
A31: 2 | B31: 3 | C31: 99.5 | D31: 101 | E31: 35 | G31: 3 fills | I31: 6*4/8
A32: 3 | B32: 12 | C32: 99 | D32: 101.5 | E32: 5
A33: 4 | B33: 20 | C33: 98.25 | D33: 102.5 | E33: 2
A34: 5 | B34: 5 | C34: 98 | D34: 103 | E34: 15
